bitfinex/quotes_SOLUSD_20250805
["timestamp","ask_amount","ask_price","bid_price","bid_amount"]
[1754363777635,3.10989,168.33,168.32,0.06]
[1754363777822,8.19781137,168.33,168.32,0.06]
[1754363779135,0.03,168.33,168.32,0.06]
[1754363779717,0.03,168.33,168.32,0.68]
[1754363780028,0.03,168.33,168.32,0.06]
[1754363783534,0.03,168.33,168.32,6.62106463]
[1754363783912,0.03,168.33,168.32,6.00106463]
[1754363784110,0.03,168.33,168.32,11.85114757]
[1754363785434,0.03,168.33,168.32,6.1432262]
[1754363785649,0.03,168.33,168.32,11.85114757]
[1754363786132,0.03,168.33,168.32,11.23114757]
[1754363786433,0.03,168.33,168.32,6.1432262]
[1754363788244,0.03,168.33,168.32,6.00106463]
[1754363789262,0.75,168.33,168.32,6.00106463]
[1754363789538,0.75,168.33,168.32,0.06]
[1754363791219,0.03,168.33,168.32,0.06]
[1754363792324,0.03,168.33,168.32,0.68]
[1754363793542,0.03,168.33,168.32,0.06]
[1754363795741,0.03,168.33,168.32,0.68]
[1754363796342,0.03,168.33,168.32,0.06]
[1754363805273,0.03,168.33,168.32,0.68]
[1754363805636,0.03,168.33,168.32,3.9351488]
[1754363806066,0.03,168.33,168.32,3.3151488]
[1754363806465,0.03,168.33,168.32,0.06]
[1754363807648,0.75,168.33,168.32,0.06]
[1754363807850,4.0051488,168.33,168.32,0.06]
[1754363808486,0.75,168.33,168.32,0.06]
[1754363809548,35.94586049,168.33,168.32,0.06]
[1754363810685,38.32589149,168.33,168.32,0.06]
[1754363811058,38.32589149,168.33,168.31,0.06]
[1754363811059,55.32782382,168.33,168.31,0.06]
[1754363811372,26.0,168.29,168.21,5.9449396]
[1754363811575,3.2551488,168.25,168.21,5.9449396]
[1754363811866,45.5751488,168.24,168.21,5.9449396]
[1754363812472,42.32,168.24,168.21,5.9449396]
[1754363813188,0.72,168.23,168.2,6.08737881]
[1754363813379,0.72,168.23,168.2,5.94521724]
[1754363814470,46.69263407,168.24,168.2,6.61521724]
[1754363814786,47.41263407,168.24,168.2,6.61521724]
[1754363816283,5.81263407,168.23,168.19,6.08769927]
[1754363816490,5.81263407,168.22,168.19,6.08769927]
[1754363816790,5.09263407,168.23,168.2,0.67]
[1754363816981,46.69263407,168.24,168.2,0.67]
[1754363817174,47.41263407,168.24,168.2,0.67]
[1754363817380,0.72,168.23,168.19,11.18033334]
[1754363817588,0.72,168.23,168.19,11.85033334]
[1754363817780,41.6,168.24,168.2,5.76263407]
[1754363817980,46.69263407,168.24,168.19,11.18033334]
[1754363818183,0.72,168.23,168.19,11.85033334]
[1754363819584,0.72,168.23,168.19,11.18033334]
[1754363819784,0.72,168.23,168.21,5.94494976]
[1754363820492,5.09263407,168.23,168.21,5.94494976]
[1754363820668,42.32,168.24,168.2,5.94530321]
[1754363820876,47.41263407,168.24,168.2,6.66530321]
[1754363821189,0.72,168.23,168.2,5.94530321]
[1754363821492,0.72,168.22,168.2,5.94530321]
[1754363821683,47.41263407,168.24,168.2,5.94530321]
[1754363823100,47.41263407,168.24,168.2,6.66530321]
[1754363823265,0.72,168.23,168.2,5.94530321]
[1754363824585,0.72,168.23,168.2,6.00530321]
[1754363827277,0.72,168.23,168.2,11.09793728]
[1754363827779,41.6,168.24,168.2,6.00530321]
[1754363828093,41.6,168.24,168.2,6.00528312]
[1754363828302,148.2,168.26,168.23,5.09263407]
[1754363828506,41.6,168.29,168.25,5.09263407]
[1754363828814,5.09263407,168.27,168.24,0.14216157]
[1754363829300,5.09263407,168.28,168.24,5.23479564]
[1754363829502,0.72,168.28,168.25,5.09263407]
[1754363829690,47.41263407,168.29,168.25,11.75617047]
[1754363829997,5.09263407,168.27,168.22,0.14216157]
[1754363830201,5.09263407,168.27,168.22,5.23479564]
[1754363830398,42.32,168.26,168.22,5.95479564]
[1754363830702,42.32,168.26,168.23,5.09263407]
[1754363831199,41.6,168.26,168.25,5.23479564]
[1754363831405,41.6,168.26,168.25,5.95479564]
[1754363831699,41.6,168.29,168.26,5.94318316]
[1754363832026,17.89485744,168.31,168.27,0.72]
[1754363832303,17.89485744,168.31,168.3,5.09263407]
[1754363832481,18.61485744,168.31,168.3,5.09263407]
[1754363833305,17.89485744,168.31,168.3,5.09263407]
[1754363833679,17.89485744,168.31,168.3,5.94177064]
[1754363833880,17.89485744,168.31,168.3,11.03440471]
[1754363834583,17.89485744,168.31,168.3,5.94177064]
[1754363834783,17.89485744,168.31,168.3,11.03440471]
[1754363835282,18.61485744,168.31,168.29,5.94212371]
[1754363835505,18.61485744,168.31,168.29,11.03475778]
[1754363835803,18.61485744,168.31,168.3,5.09263407]
[1754363836376,17.89485744,168.31,168.3,5.09263407]
[1754363837506,17.89485744,168.31,168.3,11.03440471]
[1754363837709,17.89485744,168.31,168.3,27.00278185]
[1754363838508,17.89485744,168.31,168.3,26.28278185]
[1754363839182,17.89485744,168.31,168.3,11.17656628]
[1754363839485,18.61485744,168.31,168.3,11.17656628]
[1754363840103,17.89485744,168.31,168.3,11.17656628]
[1754363840686,17.89485744,168.31,168.3,11.89656628]
[1754363841016,17.89485744,168.31,168.3,11.17656628]
[1754363841806,18.61485744,168.31,168.27,15.10621557]
[1754363842113,18.61485744,168.31,168.19,10.0]
[1754363842114,5.81263407,168.3,168.25,11.03606568]
[1754363842285,5.09263407,168.28,168.23,5.09263407]
[1754363842614,0.72,168.27,168.24,0.14216157]
[1754363842910,46.69263407,168.26,168.21,20.19884964]
[1754363843205,0.72,168.25,168.22,0.14216157]
[1754363843399,0.72,168.24,168.22,5.09263407]
[1754363843801,0.72,168.23,168.21,5.94486484]
[1754363844002,47.41263407,168.23,168.2,6.00518805]
[1754363844193,46.69263407,168.23,168.2,6.00518805]
[1754363844507,0.72,168.22,168.2,6.00518805]
[1754363844905,41.6,168.23,168.2,6.00518805]
[1754363845093,0.72,168.22,168.2,6.00518805]
[1754363845487,41.6,168.23,168.2,6.00518805]
[1754363845691,0.72,168.21,168.2,6.14734962]
[1754363847715,0.72,168.22,168.2,6.14734962]
[1754363847918,0.72,168.22,168.2,6.00518805]
[1754363848284,41.6,168.23,168.2,6.00518805]
[1754363848506,41.6,168.23,168.2,11.09782212]
[1754363848804,41.6,168.23,168.22,5.09263407]
[1754363849013,41.6,168.23,168.22,5.91479564]
[1754363849908,41.6,168.23,168.22,11.179392]
[1754363850089,42.29,168.23,168.21,5.94488061]
[1754363850290,0.69,168.22,168.21,5.94488061]
[1754363850497,0.69,168.22,168.21,6.08704218]
[1754363850693,41.6,168.23,168.21,11.17967625]
[1754363850897,42.29,168.23,168.21,11.17967625]
[1754363851708,0.69,168.22,168.2,6.00517676]
[1754363852102,0.69,168.21,168.2,6.14733833]
[1754363852409,0.69,168.21,168.2,11.2399724]
[1754363852714,42.29,168.23,168.2,11.2399724]
[1754363853087,0.69,168.22,168.2,11.2399724]
[1754363853812,0.69,168.22,168.2,6.14733833]
[1754363854107,0.69,168.22,168.2,11.2399724]
[1754363856091,41.6,168.23,168.2,11.2399724]
[1754363856405,42.29,168.23,168.21,5.09263407]
[1754363856786,41.6,168.23,168.21,5.09263407]
[1754363857507,42.29,168.23,168.21,5.09263407]
[1754363857812,42.29,168.23,168.2,6.00517676]
[1754363857813,0.69,168.23,168.2,6.00517676]
[1754363858018,0.69,168.22,168.2,11.09781083]
[1754363858721,0.69,168.22,168.2,0.06]
[1754363859017,0.69,168.22,168.2,6.00521439]
[1754363859018,41.62,168.21,168.2,6.00521439]
[1754363859225,42.31,168.21,168.2,6.00521439]
[1754363859718,41.62,168.21,168.2,11.24001003]
[1754363859916,41.62,168.23,168.2,11.24001003]
[1754363860120,41.62,168.23,168.22,5.09263407]
[1754363860622,41.62,168.24,168.2,6.14737596]
[1754363860827,42.31,168.24,168.22,5.09263407]
[1754363861632,42.31,168.24,168.21,0.14216157]
[1754363861815,0.69,168.23,168.21,5.23479564]
[1754363861994,0.69,168.22,168.21,5.09263407]
[1754363862199,0.69,168.22,168.21,11.03758383]
[1754363864218,41.62,168.24,168.21,11.03758383]
[1754363864601,0.69,168.23,168.21,11.03758383]
[1754363866130,148.2,168.25,168.24,5.94388968]
[1754363866433,148.2,168.25,168.24,11.17868532]
[1754363866625,41.64,168.27,168.24,11.17868532]
[1754363866806,42.33,168.27,168.24,6.08605125]
[1754363867007,42.33,168.27,168.26,5.09263407]
[1754363867913,42.33,168.27,168.26,11.03581723]
[1754363868314,41.64,168.27,168.26,11.03581723]
[1754363869110,42.33,168.27,168.26,11.03581723]
[1754363871530,42.33,168.27,168.26,5.09263407]
[1754363871731,42.33,168.27,168.22,5.94459636]
[1754363871938,0.69,168.26,168.25,5.09263407]
[1754363872334,0.69,168.26,168.23,0.14216157]
[1754363872635,0.69,168.26,168.25,5.09263407]
[1754363872950,41.64,168.27,168.26,5.94318316]
[1754363873112,41.64,168.27,168.26,11.03581723]
[1754363873961,42.33,168.27,168.26,11.03581723]
[1754363874429,42.33,168.27,168.23,0.82216157]
[1754363874430,42.33,168.27,168.25,5.94342512]
[1754363874635,0.69,168.26,168.25,11.03605919]
[1754363875527,41.64,168.27,168.25,5.09263407]
[1754363875732,42.33,168.27,168.25,5.09263407]
[1754363876973,42.33,168.27,168.24,5.94388968]
[1754363877163,0.69,168.26,168.25,5.09263407]
[1754363877661,0.69,168.26,168.25,11.03617047]
[1754363878747,0.69,168.26,168.25,5.09263407]
[1754363878949,0.69,168.26,168.25,11.03617047]
[1754363879466,0.69,168.26,168.24,11.03637735]
[1754363879660,0.72,168.25,168.24,11.03637735]
[1754363880160,42.36,168.27,168.24,11.03637735]
[1754363880342,0.72,168.26,168.25,5.09263407]
[1754363881073,0.72,168.26,168.23,6.08628961]
[1754363881254,0.72,168.26,168.24,5.09263407]
[1754363881563,0.72,168.26,168.25,5.09263407]
[1754363882664,0.72,168.26,168.25,11.03617047]
[1754363882854,41.64,168.27,168.25,5.9435364]
[1754363883165,42.36,168.27,168.25,11.03617047]
[1754363883774,42.36,168.27,168.25,5.9435364]
[1754363883953,42.36,168.27,168.25,11.03617047]
[1754363885371,42.36,168.27,168.25,5.9435364]
[1754363885767,41.64,168.27,168.25,11.73617047]
[1754363885972,41.64,168.27,168.26,5.09263407]
[1754363886352,41.64,168.27,168.25,11.03617047]
[1754363887067,41.64,168.27,168.25,5.23479564]
[1754363888464,41.64,168.27,168.26,5.94318316]
[1754363888782,41.64,168.27,168.25,11.03614922]
[1754363889565,41.64,168.27,168.26,5.09263407]
[1754363889882,190.52,168.29,168.26,5.09263407]
[1754363890078,0.72,168.27,168.25,11.03614922]
[1754363891064,189.8,168.29,168.25,11.03614922]
[1754363891271,0.72,168.28,168.25,11.03614922]
[1754363891473,0.72,168.28,168.26,5.09263407]
[1754363892986,0.72,168.28,168.27,5.09263407]
[1754363893189,189.8,168.29,168.27,5.09263407]
[1754363893378,189.8,168.29,168.27,11.03519845]
[1754363893563,190.52,168.29,168.27,11.03519845]
[1754363894396,190.52,168.29,168.27,5.94256438]
[1754363894593,190.52,168.29,168.27,11.03519845]
[1754363895468,41.6,168.29,168.28,11.03511089]
[1754363895670,0.03,168.3,168.29,15.24837714]
[1754363895874,0.03,168.3,168.29,21.04101121]
[1754363896069,0.03,168.3,168.29,20.34101121]
[1754363896070,0.75,168.3,168.29,20.34101121]
[1754363896280,0.75,168.3,168.29,0.14216157]
[1754363896474,0.75,168.3,168.29,5.23479564]
[1754363896669,0.03,168.3,168.29,5.23479564]
[1754363896875,0.03,168.3,168.29,15.94837714]
[1754363897064,0.03,168.3,168.29,21.04101121]
[1754363897873,0.03,168.3,168.29,26.98313492]
[1754363898675,0.03,168.3,168.29,26.28313492]
[1754363899192,0.03,168.3,168.29,21.19050085]
[1754363899510,0.03,168.3,168.26,5.23479564]
[1754363899511,42.35,168.3,168.26,5.23479564]
[1754363899706,0.72,168.29,168.26,0.14216157]
[1754363899863,41.6,168.28,168.27,5.94282997]
[1754363900268,42.32,168.28,168.27,5.94282997]
[1754363902878,42.32,168.28,168.26,6.08522178]
[1754363903090,0.72,168.27,168.26,6.08522178]
[1754363904612,0.72,168.27,168.25,0.06]
[1754363904919,11.75552066,168.27,168.25,0.06]
[1754363905122,11.75548249,168.27,168.25,0.06]
[1754363905424,0.72,168.26,168.25,0.06]
[1754363906431,42.32,168.28,168.25,6.0035364]
[1754363906727,0.72,168.27,168.25,0.06]
[1754363907096,0.72,168.26,168.25,0.06]
[1754363907826,42.32,168.28,168.25,0.06]
[1754363908321,0.72,168.27,168.25,0.06]
[1754363909922,5.81263407,168.27,168.25,0.06]
[1754363910224,0.72,168.27,168.25,0.06]
[1754363910409,0.69,168.26,168.25,0.06]
[1754363914841,148.2,168.26,168.25,0.06]
[1754363915127,148.2,168.26,168.25,6.00479564]
[1754363915338,148.2,168.26,168.25,5.29479564]
[1754363916117,190.49,168.26,168.25,0.06]
[1754363918725,195.58263407,168.26,168.25,0.06]
[1754363918930,201.52581723,168.26,168.25,0.06]
[1754363919237,53.32581723,168.26,168.25,0.06]
[1754363920927,48.23318316,168.26,168.25,0.06]
[1754363921932,53.32581723,168.26,168.25,0.06]
[1754363923164,47.38263407,168.26,168.25,0.06]
[1754363923374,42.29,168.26,168.25,0.06]
[1754363923856,41.6,168.26,168.25,0.06]
[1754363924026,31.78263407,168.28,168.25,0.06]
[1754363924232,41.6,168.27,168.25,0.06]
[1754363924556,42.29,168.27,168.25,0.06]
[1754363925757,41.6,168.27,168.25,0.06]
[1754363925969,5.78263407,168.26,168.25,0.06]
[1754363928761,0.69,168.26,168.25,0.06]
[1754363929256,52.63547538,168.27,168.25,0.06]
[1754363929462,0.69,168.26,168.25,0.06]
[1754363935283,11.72581723,168.26,168.25,0.06]
[1754363939887,14.10698223,168.26,168.25,0.06]
[1754363940292,55.70698223,168.26,168.25,0.06]
[1754363940662,50.61434816,168.26,168.25,0.06]
[1754363940965,53.32581723,168.26,168.25,0.06]
[1754363946198,58.09577041,168.26,168.25,0.06]
[1754363946610,82.41589043,168.26,168.25,1e-08]
[1754363946785,148.19999999,168.25,168.21,0.06]
[1754363946989,31.09263407,168.22,168.21,0.06]
[1754363947195,72.71263407,168.22,168.21,0.06]
[1754363947707,73.37263407,168.22,168.21,0.06]
[1754363948493,79.31723043,168.22,168.21,0.06]
[1754363948924,94.423446,168.22,168.21,0.06]
[1754363950909,79.31723043,168.22,168.21,0.06]
[1754363951630,79.31723043,168.22,168.13,5.94773609]
[1754363951631,26.0,168.18,168.16,0.69]
[1754363951822,26.0,168.18,168.17,0.69]
[1754363952141,41.7,168.18,168.17,0.69]
[1754363953517,41.7,168.18,168.17,5.78263407]
[1754363953898,41.7,168.18,168.17,0.69]
[1754363956410,41.7,168.18,168.17,5.78263407]
[1754363956725,41.7,168.18,168.17,0.69]
[1754363957705,41.7,168.18,168.17,0.75]
[1754363958101,41.7,168.18,168.17,5.84263407]
[1754363958916,41.7,168.18,168.17,0.75]
[1754363959131,41.7,168.18,168.17,11.78899786]
[1754363959334,41.7,168.18,168.17,5.84263407]
[1754363959710,41.7,168.18,168.17,0.75]
[1754363959913,41.7,168.18,168.17,5.84263407]
[1754363960715,41.7,168.18,168.17,0.75]
[1754363961034,41.7,168.18,168.17,0.06]
[1754363964062,41.7,168.18,168.17,5.15263407]
[1754363964445,41.7,168.18,168.17,0.06]
[1754363970067,42.37,168.18,168.17,0.06]
[1754363973986,190.57,168.18,168.17,0.06]
[1754363975359,189.9,168.18,168.17,0.06]
[1754363976272,189.9,168.18,168.17,5.86263407]
[1754363976457,189.9,168.18,168.17,0.77]
[1754363976660,189.9,168.18,168.17,4.03037791]
[1754363977487,189.9,168.18,168.17,0.06]
[1754363977488,42.37,168.18,168.17,0.06]
[1754363977980,41.7,168.18,168.17,0.06]
[1754363978874,0.67,168.2,168.17,0.06]
[1754363979177,42.29,168.19,168.17,0.06]
[1754363979563,0.67,168.18,168.17,0.06]
[1754363983062,148.87,168.18,168.17,0.06]
[1754363985386,148.2,168.18,168.17,0.06]
[1754363985684,148.87,168.18,168.17,0.06]
[1754363987186,190.49,168.18,168.17,0.06]
[1754363987384,148.87,168.18,168.17,0.06]
[1754363987567,190.49,168.18,168.17,0.06]
[1754363988768,42.29,168.18,168.17,0.06]
[1754363989797,53.33152477,168.18,168.17,0.06]
[1754363990385,48.23601022,168.18,168.17,0.06]
[1754363990576,53.33152477,168.18,168.17,0.06]
[1754363990785,74.23601022,168.18,168.17,0.06]
[1754363991091,79.33152477,168.18,168.17,0.06]
[1754363997296,15.69218633,168.18,168.17,0.06]
[1754363997468,79.33152477,168.18,168.17,0.06]
[1754364000775,77.49880138,168.18,168.17,0.06]
[1754364000981,74.23601022,168.18,168.17,0.06]
[1754364001189,26.0,168.18,168.17,0.06]
[1754364001500,41.62,168.18,168.17,0.78]
[1754364002306,41.62,168.18,168.17,0.06]
[1754364002481,15.47661275,168.21,168.17,0.78]
[1754364002686,41.82,168.2,168.18,0.72]
[1754364003110,3.95279116,168.19,168.17,0.06]
[1754364003299,45.08279116,168.18,168.17,0.06]
[1754364003606,45.08279116,168.18,168.08,0.1]
[1754364003607,26.0,168.15,168.08,0.1]
[1754364003913,3.26279116,168.09,168.08,0.1]
[1754364004209,45.08279116,168.09,168.08,0.1]
[1754364004408,45.77279116,168.09,168.08,0.1]
[1754364004581,41.82,168.09,168.08,0.1]
[1754364005092,41.84,168.09,168.08,0.82]
[1754364005294,41.84,168.09,168.06,11.05206935]
[1754364005488,41.84,168.08,168.07,5.10190181]
[1754364005690,41.86,168.09,168.07,5.24406338]
[1754364005886,41.86,168.09,168.08,5.10190181]
[1754364006097,41.84,168.1,168.07,0.14216157]
[1754364006309,41.84,168.1,168.08,5.10190181]
[1754364007008,41.84,168.1,168.08,11.05121574]
[1754364007810,42.53,168.1,168.07,5.9498066]
[1754364008110,41.84,168.1,168.07,11.05170841]
[1754364008500,41.84,168.1,168.07,5.9498066]
[1754364008700,41.84,168.1,168.04,30.12563209]
[1754364008701,0.69,168.09,168.04,30.12563209]
[1754364008906,42.55,168.08,168.05,11.19467331]
[1754364009082,41.86,168.08,168.05,11.71467331]
[1754364009288,41.86,168.08,168.06,5.10190181]
[1754364009488,41.86,168.08,168.07,5.62190181]
[1754364009694,41.84,168.1,168.07,5.62190181]
[1754364010009,41.84,168.1,168.09,5.10190181]
[1754364010200,41.84,168.1,168.08,5.62190181]
[1754364010797,41.84,168.1,168.09,0.52]
[1754364011101,41.84,168.1,168.09,11.57109569]
[1754364011497,41.84,168.1,168.09,6.46919388]
[1754364011704,41.84,168.1,168.09,11.05109569]
[1754364012125,41.84,168.1,168.09,5.94919388]
[1754364013312,41.84,168.1,168.08,11.57137627]
[1754364013493,41.84,168.1,168.08,6.46947446]
[1754364016407,42.53,168.1,168.08,6.46947446]
[1754364016922,0.69,168.09,168.08,6.46947446]
[1754364017218,148.2,168.15,168.08,12.09121042]
[1754364017394,5.10190181,168.09,168.08,0.52]
[1754364017600,47.59190181,168.09,168.08,0.52]
[1754364019919,41.84,168.09,168.08,0.52]
[1754364020221,42.53,168.09,168.08,0.52]
[1754364020400,47.63190181,168.09,168.08,0.52]
[1754364020801,42.53,168.09,168.08,0.52]
[1754364022728,42.53,168.09,168.06,11.05212668]
[1754364023300,42.53,168.09,168.05,6.0927715]
[1754364023507,42.53,168.09,168.06,5.10190181]
[1754364023702,42.53,168.09,168.08,0.06]
[1754364024403,53.58109569,168.09,168.08,0.06]
[1754364025223,47.63190181,168.09,168.08,0.06]
[1754364025401,53.58109569,168.09,168.08,0.06]
[1754364025597,47.63190181,168.09,168.08,0.06]
[1754364025803,42.53,168.09,168.08,0.06]
[1754364031448,53.58109569,168.09,168.08,0.06]
[1754364031912,48.47919388,168.09,168.08,0.06]
[1754364032617,53.58109569,168.09,168.08,0.06]
[1754364033219,42.53,168.09,168.08,0.06]
[1754364033433,48.47919388,168.09,168.08,0.06]
[1754364034238,53.58109569,168.09,168.08,0.06]
[1754364035113,5.10190181,168.05,167.99,0.58]
[1754364035312,5.10190181,168.05,167.97,15.10621557]
[1754364035313,41.78,168.04,168.0,81.61080755]
[1754364035626,0.7,168.03,168.0,75.92890574]
[1754364035930,42.52,168.02,168.0,81.88124584]
[1754364036110,41.82,168.02,168.0,81.88124584]
[1754364036922,41.82,168.02,168.0,87.56314765]
[1754364038115,41.82,168.02,168.0,75.92890574]
[1754364039164,41.82,168.02,168.0,81.88126992]
[1754364039468,41.82,168.02,168.0,75.92890574]
[1754364039851,41.82,168.02,168.0,81.88127598]
[1754364040046,41.82,168.02,168.01,5.10190181]
[1754364040376,41.82,168.02,168.01,5.68190181]
[1754364040560,41.82,168.02,168.0,86.98317779]
[1754364040875,41.82,168.02,168.0,87.56317779]
[1754364041456,41.82,168.02,168.0,82.46127598]
[1754364041653,41.82,168.02,168.0,87.56317779]
[1754364042075,41.82,168.02,168.01,11.05392847]
[1754364042473,41.8,168.02,168.01,5.95202666]
[1754364042675,41.8,168.02,168.01,11.05392847]
[1754364043278,41.8,168.02,168.0,81.88116976]
[1754364043489,41.8,168.02,168.0,86.98307157]
[1754364044259,41.8,168.02,168.0,87.56307157]
[1754364044461,41.8,168.02,168.01,5.10190181]
[1754364044659,148.2,168.04,168.01,5.10190181]
[1754364044860,41.8,168.03,168.0,87.56307157]
[1754364045693,41.8,168.03,168.01,0.06]
[1754364046186,41.8,168.03,168.01,5.16190181]
[1754364046380,42.5,168.03,168.01,0.06]
[1754364047684,41.8,168.03,168.01,5.16190181]
[1754364048381,41.8,168.03,168.02,5.95167241]
[1754364049491,42.5,168.03,168.01,0.06]
[1754364049695,42.5,168.03,168.01,5.16190181]
[1754364050392,42.5,168.03,168.01,0.06]
[1754364050393,41.8,168.03,168.01,0.06]
[1754364050584,42.5,168.03,168.01,0.06]
[1754364053004,0.7,168.02,168.01,0.06]
[1754364053536,42.5,168.03,168.01,0.06]
[1754364054298,42.5,168.03,168.01,5.16190181]
[1754364054885,42.5,168.03,168.01,0.06]
[1754364055911,42.5,168.03,168.01,6.01199131]
[1754364056707,42.5,168.03,168.01,11.11389312]
[1754364057534,26.0,168.0,167.9,22.54754759]
[1754364057752,52.72,167.99,167.86,10.9006756]
[1754364057899,26.0,167.95,167.89,5.10190181]
[1754364058102,43.1,167.94,167.89,5.10190181]
[1754364058318,74.20190181,167.95,167.87,0.68]
[1754364058500,74.20190181,167.95,167.89,5.10190181]
[1754364058699,69.1,167.95,167.89,5.10190181]
[1754364058930,69.1,167.95,167.89,5.77190181]
[1754364059305,48.20190181,167.95,167.9,0.67]
[1754364059639,48.20190181,167.95,167.88,48.85190181]
[1754364059831,54.15631064,167.95,167.88,5.77190181]
[1754364060045,5.10190181,167.94,167.88,5.77190181]
[1754364060242,54.15631064,167.95,167.89,5.10190181]
[1754364060533,54.15631064,167.95,167.89,0.67]
[1754364060697,54.15631064,167.95,167.89,5.77190181]
[1754364061236,54.15631064,167.95,167.88,5.10190181]
[1754364061237,5.10190181,167.94,167.88,5.10190181]
[1754364061600,5.95486214,167.93,167.88,5.10190181]
[1754364061803,5.95486214,167.93,167.88,5.77190181]
[1754364062102,5.95486214,167.93,167.89,0.67]
[1754364063122,11.05676395,167.93,167.89,0.67]
[1754364063437,5.95486214,167.93,167.89,0.67]
[1754364065051,5.10190181,167.94,167.88,5.10190181]
[1754364065237,153.30190181,167.96,167.9,5.77190181]
[1754364065558,5.10190181,167.95,167.87,5.95697396]
[1754364065850,5.10190181,167.95,167.9,5.77190181]
[1754364066234,5.10190181,167.94,167.9,0.67]
[1754364066436,11.05614757,167.95,167.9,0.67]
[1754364067149,5.95424576,167.95,167.9,0.67]
[1754364067334,11.05614757,167.95,167.9,0.67]
[1754364068453,5.10190181,167.94,167.9,0.67]
[1754364068836,11.05614757,167.95,167.9,5.77190181]
[1754364069248,11.05614757,167.95,167.91,0.67]
[1754364071661,5.10190181,167.95,167.91,0.67]
[1754364071834,5.10190181,167.95,167.91,5.77190181]
[1754364072030,148.2,167.96,167.94,5.10190181]
[1754364072243,148.2,167.96,167.95,0.67]
[1754364073938,148.2,167.96,167.95,5.77190181]
[1754364074843,148.2,167.96,167.95,0.67]
[1754364075379,148.2,167.96,167.95,5.77190181]
[1754364077369,148.2,167.96,167.95,11.72605483]
[1754364077664,153.30190181,168.01,167.95,11.72605483]
[1754364077970,159.25397341,168.01,167.97,5.10190181]
[1754364078169,159.25397341,168.01,167.97,5.77190181]
[1754364078470,153.30190181,168.01,167.97,5.77190181]
[1754364079046,148.2,168.0,167.98,0.67]
[1754364079552,148.2,168.0,167.98,5.10190181]
[1754364079751,148.2,168.0,167.99,5.77190181]
[1754364080565,148.2,168.0,167.99,0.67]
[1754364080769,148.2,168.0,167.99,5.77190181]
[1754364080972,148.2,168.0,167.99,0.67]
[1754364081182,148.2,168.0,167.99,5.77190181]
[1754364082757,148.2,168.0,167.99,0.67]
[1754364083474,148.2,168.0,167.95,5.95415302]
[1754364083658,148.2,168.0,167.94,0.67]
[1754364083659,5.10190181,167.99,167.94,0.67]
[1754364083989,5.10190181,167.98,167.94,5.77190181]
[1754364084579,5.10190181,167.99,167.94,5.77190181]
[1754364084893,5.10190181,167.99,167.94,11.72627804]
[1754364085993,11.05467287,167.99,167.94,6.62437623]
[1754364086157,5.10190181,167.98,167.94,0.67]
[1754364086358,5.10190181,167.98,167.94,5.10190181]
[1754364086690,5.10190181,167.98,167.94,5.77190181]
[1754364086986,11.05467287,167.99,167.94,11.72640778]
[1754364087891,11.05467287,167.99,167.94,11.05640778]
[1754364088083,11.05467287,167.99,167.95,0.67]
[1754364089457,5.95277106,167.99,167.95,0.67]
[1754364089658,11.05467287,167.99,167.95,0.67]
[1754364089885,11.05467287,167.99,167.95,5.77190181]
[1754364090187,11.05467287,167.99,167.95,0.67]
[1754364090389,11.05467287,167.99,167.95,5.77190181]